Workbook

Sheet New Invoice
A1: dc Tax, LLC 9301 Ocoee St, #64 Chattanooga, TN 37363
J2: Outstanding Invoices:
G5: Payments Received
A6: tax relief for individuals & small business
G9: Date: | H9: 2023-06-24
G11: Client: | H11: Scott Brannon
G13: Client ID: | H13: 20230624103307
G15: Amount: | H15: 500
E16: Invoice Client ID | G16: Applied to: | H16: 202306260903
G17: Payment Ref: | H17: Check #1007, Truist Bank
C20: INVOICE
C23: Invoice #
C24: Invoice Date
C25: Invoice Due
A29: Description | B29: Qty | C29: Rate | D29: Total
D30: =IF(NOT(AND(ISBLANK(B30),ISBLANK(C30))),B30*C30,"") -> 
D31: =IF(NOT(AND(ISBLANK(B31),ISBLANK(C31))),B31*C31,"") -> 
C38: Sub-Total | D38: =IF(SUM(D30:D35)>0,SUM(D30:D35),"") -> 
A40: You can also pay securely, online through Stripe. Just scan the QR code below. | C40: Other
C42: Tax
B44: Invoice Total | D44: =IF(SUM(D38:D43)>0,SUM(D38:D43),"") -> 
A48: Thank you for your business and may God bless you.

Sheet Invoices
J1: # of Invoices | K1: Accounts Receivable:
J2: =COUNT(I10:I100005) -> 18 | K2: =SUM(Invoices!$M$10:$M$27) -> 5768.5 | P2: =LEFT(D24,8)&MID(D24,9,1)+MID(D24,10,1)+MID(D24,11,1)+MID(D24,12,1)+MID(D24,13,1)+MID(D24,14,1) -> 2023062414
B8: Invoices | I8: Invoice Summary | O8: Payments
B9: Invoice | C9: Invoiced To | D9: Invoiced To Record ID | E9: Invoice Date | F9: Invoice Due | G9: Invoice Total | I9: Number | J9: Name | K9: Amount | L9: Payments | M9: Balance | O9: Invoice | P9: Invoiced To | Q9: Invoiced To Record ID | R9: Payment Date | S9: Payment Reference | T9: Payment Amount | U9: Applied to Invoice
B10: 202341754 | C10: Lamberts Flooring Inc | D10: 459 | E10: 2023-04-17 | F10: 2023-05-17 | G10: 80 | I10: =_xlfn.UNIQUE(TableInvoiceDetail[Invoice],FALSE) -> 202341754 | J10: =IF(I10="","",_xlfn.XLOOKUP(I10,TableInvoiceDetail[Invoice],TableInvoiceDetail[Invoiced To])) -> Lamberts Flooring Inc | K10: =_xlfn.XLOOKUP(I10,TableInvoiceDetail[Invoice],TableInvoiceDetail[Invoice Total]) -> 80 | L10: =SUMIF(TablePaymentDetail[Invoice],I10,TablePaymentDetail[Applied to Invoice]) -> 80 | M10: =_xlfn.XLOOKUP(I10,TableInvoiceDetail[Invoice],TableInvoiceDetail[Invoice Total])-SUMIF(TablePaymentDetail[Invoice],I10,TablePaymentDetail[Applied to Invoice]) -> 0 | O10: 202331643 | P10: Lamberts Flooring Inc | Q10: 459 | R10: 2023-04-12 | S10: Check #7436 | T10: 256.5 | U10: 256.5
B11: 202331642 | C11: Lamberts Flooring Inc | D11: 459 | E11: 2023-03-16 | F11: 2023-04-15 | G11: 162 | I11: 202331642 | J11: =IF(I11="","",_xlfn.XLOOKUP(I11,TableInvoiceDetail[Invoice],TableInvoiceDetail[Invoiced To])) -> Lamberts Flooring Inc | K11: =_xlfn.XLOOKUP(I11,TableInvoiceDetail[Invoice],TableInvoiceDetail[Invoice Total]) -> 162 | L11: =SUMIF(TablePaymentDetail[Invoice],I11,TablePaymentDetail[Applied to Invoice]) -> 0 | M11: =_xlfn.XLOOKUP(I11,TableInvoiceDetail[Invoice],TableInvoiceDetail[Invoice Total])-SUMIF(TablePaymentDetail[Invoice],I11,TablePaymentDetail[Applied to Invoice]) -> 162 | O11: 202341754 | P11: Lamberts Flooring Inc | Q11: 459 | R11: 2023-05-31 | S11: Check # 7501 (CBBC) | T11: 80 | U11: 80
B12: 202331643 | C12: Lamberts Flooring Inc | D12: 459 | E12: 2023-03-16 | F12: 2023-04-15 | G12: 256.5 | I12: 202331643 | J12: =IF(I12="","",_xlfn.XLOOKUP(I12,TableInvoiceDetail[Invoice],TableInvoiceDetail[Invoiced To])) -> Lamberts Flooring Inc | K12: =_xlfn.XLOOKUP(I12,TableInvoiceDetail[Invoice],TableInvoiceDetail[Invoice Total]) -> 256.5 | L12: =SUMIF(TablePaymentDetail[Invoice],I12,TablePaymentDetail[Applied to Invoice]) -> 256.5 | M12: =_xlfn.XLOOKUP(I12,TableInvoiceDetail[Invoice],TableInvoiceDetail[Invoice Total])-SUMIF(TablePaymentDetail[Invoice],I12,TablePaymentDetail[Applied to Invoice]) -> 0 | O12: 202341751 | P12: Lamberts Southern Pies Inc | Q12: 460 | R12: 2023-05-31 | S12: Check # 2854 (CBBC) | T12: 80 | U12: 80
B13: 202331641 | C13: Lamberts Flooring Inc | D13: 459 | E13: 2023-03-16 | F13: 2023-04-15 | G13: 414 | I13: 202331641 | J13: =IF(I13="","",_xlfn.XLOOKUP(I13,TableInvoiceDetail[Invoice],TableInvoiceDetail[Invoiced To])) -> Lamberts Flooring Inc | K13: =_xlfn.XLOOKUP(I13,TableInvoiceDetail[Invoice],TableInvoiceDetail[Invoice Total]) -> 414 | L13: =SUMIF(TablePaymentDetail[Invoice],I13,TablePaymentDetail[Applied to Invoice]) -> 0 | M13: =_xlfn.XLOOKUP(I13,TableInvoiceDetail[Invoice],TableInvoiceDetail[Invoice Total])-SUMIF(TablePaymentDetail[Invoice],I13,TablePaymentDetail[Applied to Invoice]) -> 414 | O13: 202306260903 | P13: Scott Brannon | Q13: 20230624103307 | R13: Scott Brannon | S13: Check #1007, Truist Bank | T13: 500
B14: 202331639 | C14: Lamberts Flooring Inc | D14: 459 | E14: 2023-03-16 | F14: 2023-04-15 | G14: 445 | I14: 202331639 | J14: =IF(I14="","",_xlfn.XLOOKUP(I14,TableInvoiceDetail[Invoice],TableInvoiceDetail[Invoiced To])) -> Lamberts Flooring Inc | K14: =_xlfn.XLOOKUP(I14,TableInvoiceDetail[Invoice],TableInvoiceDetail[Invoice Total]) -> 445 | L14: =SUMIF(TablePaymentDetail[Invoice],I14,TablePaymentDetail[Applied to Invoice]) -> 0 | M14: =_xlfn.XLOOKUP(I14,TableInvoiceDetail[Invoice],TableInvoiceDetail[Invoice Total])-SUMIF(TablePaymentDetail[Invoice],I14,TablePaymentDetail[Applied to Invoice]) -> 445
B15: 202331648 | C15: Lamberts Southern Pies Inc | D15: 460 | E15: 2023-03-16 | F15: 2023-04-15 | G15: 314 | I15: 202331648 | J15: =IF(I15="","",_xlfn.XLOOKUP(I15,TableInvoiceDetail[Invoice],TableInvoiceDetail[Invoiced To])) -> Lamberts Southern Pies Inc | K15: =_xlfn.XLOOKUP(I15,TableInvoiceDetail[Invoice],TableInvoiceDetail[Invoice Total]) -> 314 | L15: =SUMIF(TablePaymentDetail[Invoice],I15,TablePaymentDetail[Applied to Invoice]) -> 0 | M15: =_xlfn.XLOOKUP(I15,TableInvoiceDetail[Invoice],TableInvoiceDetail[Invoice Total])-SUMIF(TablePaymentDetail[Invoice],I15,TablePaymentDetail[Applied to Invoice]) -> 314
B16: 202331647 | C16: Lamberts Southern Pies Inc | D16: 460 | E16: 2023-03-16 | F16: 2023-04-15 | G16: 256.5 | I16: 202331647 | J16: =IF(I16="","",_xlfn.XLOOKUP(I16,TableInvoiceDetail[Invoice],TableInvoiceDetail[Invoiced To])) -> Lamberts Southern Pies Inc | K16: =_xlfn.XLOOKUP(I16,TableInvoiceDetail[Invoice],TableInvoiceDetail[Invoice Total]) -> 256.5 | L16: =SUMIF(TablePaymentDetail[Invoice],I16,TablePaymentDetail[Applied to Invoice]) -> 0 | M16: =_xlfn.XLOOKUP(I16,TableInvoiceDetail[Invoice],TableInvoiceDetail[Invoice Total])-SUMIF(TablePaymentDetail[Invoice],I16,TablePaymentDetail[Applied to Invoice]) -> 256.5
B17: 202331646 | C17: Lamberts Southern Pies Inc | D17: 460 | E17: 2023-03-16 | F17: 2023-04-15 | G17: 162 | I17: 202331646 | J17: =IF(I17="","",_xlfn.XLOOKUP(I17,TableInvoiceDetail[Invoice],TableInvoiceDetail[Invoiced To])) -> Lamberts Southern Pies Inc | K17: =_xlfn.XLOOKUP(I17,TableInvoiceDetail[Invoice],TableInvoiceDetail[Invoice Total]) -> 162 | L17: =SUMIF(TablePaymentDetail[Invoice],I17,TablePaymentDetail[Applied to Invoice]) -> 0 | M17: =_xlfn.XLOOKUP(I17,TableInvoiceDetail[Invoice],TableInvoiceDetail[Invoice Total])-SUMIF(TablePaymentDetail[Invoice],I17,TablePaymentDetail[Applied to Invoice]) -> 162
B18: 202341751 | C18: Lamberts Southern Pies Inc | D18: 460 | E18: 2023-04-17 | F18: 2023-05-17 | G18: 80 | I18: 202341751 | J18: =IF(I18="","",_xlfn.XLOOKUP(I18,TableInvoiceDetail[Invoice],TableInvoiceDetail[Invoiced To])) -> Lamberts Southern Pies Inc | K18: =_xlfn.XLOOKUP(I18,TableInvoiceDetail[Invoice],TableInvoiceDetail[Invoice Total]) -> 80 | L18: =SUMIF(TablePaymentDetail[Invoice],I18,TablePaymentDetail[Applied to Invoice]) -> 80 | M18: =_xlfn.XLOOKUP(I18,TableInvoiceDetail[Invoice],TableInvoiceDetail[Invoice Total])-SUMIF(TablePaymentDetail[Invoice],I18,TablePaymentDetail[Applied to Invoice]) -> 0
B19: 202331644 | C19: Lamberts Southern Pies Inc | D19: 460 | E19: 2023-03-16 | F19: 2023-04-15 | G19: 345 | I19: 202331644 | J19: =IF(I19="","",_xlfn.XLOOKUP(I19,TableInvoiceDetail[Invoice],TableInvoiceDetail[Invoiced To])) -> Lamberts Southern Pies Inc | K19: =_xlfn.XLOOKUP(I19,TableInvoiceDetail[Invoice],TableInvoiceDetail[Invoice Total]) -> 345 | L19: =SUMIF(TablePaymentDetail[Invoice],I19,TablePaymentDetail[Applied to Invoice]) -> 0 | M19: =_xlfn.XLOOKUP(I19,TableInvoiceDetail[Invoice],TableInvoiceDetail[Invoice Total])-SUMIF(TablePaymentDetail[Invoice],I19,TablePaymentDetail[Applied to Invoice]) -> 345
B20: 202305231659 | C20: Larson Consulting | D20: 461 | E20: 2023-05-23 | F20: 2023-06-22 | G20: 495 | I20: 202305231659 | J20: =IF(I20="","",_xlfn.XLOOKUP(I20,TableInvoiceDetail[Invoice],TableInvoiceDetail[Invoiced To])) -> Larson Consulting | K20: =_xlfn.XLOOKUP(I20,TableInvoiceDetail[Invoice],TableInvoiceDetail[Invoice Total]) -> 495 | L20: =SUMIF(TablePaymentDetail[Invoice],I20,TablePaymentDetail[Applied to Invoice]) -> 0 | M20: =_xlfn.XLOOKUP(I20,TableInvoiceDetail[Invoice],TableInvoiceDetail[Invoice Total])-SUMIF(TablePaymentDetail[Invoice],I20,TablePaymentDetail[Applied to Invoice]) -> 495
B21: 202305241104 | C21: Lamberts Flooring Inc | D21: 459 | E21: 2023-05-24 | F21: 2023-06-23 | G21: 45 | I21: 202305241104 | J21: =IF(I21="","",_xlfn.XLOOKUP(I21,TableInvoiceDetail[Invoice],TableInvoiceDetail[Invoiced To])) -> Lamberts Flooring Inc | K21: =_xlfn.XLOOKUP(I21,TableInvoiceDetail[Invoice],TableInvoiceDetail[Invoice Total]) -> 45 | L21: =SUMIF(TablePaymentDetail[Invoice],I21,TablePaymentDetail[Applied to Invoice]) -> 0 | M21: =_xlfn.XLOOKUP(I21,TableInvoiceDetail[Invoice],TableInvoiceDetail[Invoice Total])-SUMIF(TablePaymentDetail[Invoice],I21,TablePaymentDetail[Applied to Invoice]) -> 45
B22: 202305241109 | C22: Lamberts Southern Pies Inc | D22: 460 | E22: 2023-05-24 | F22: 2023-06-23 | G22: 45 | I22: 202305241109 | J22: =IF(I22="","",_xlfn.XLOOKUP(I22,TableInvoiceDetail[Invoice],TableInvoiceDetail[Invoiced To])) -> Lamberts Southern Pies Inc | K22: =_xlfn.XLOOKUP(I22,TableInvoiceDetail[Invoice],TableInvoiceDetail[Invoice Total]) -> 45 | L22: =SUMIF(TablePaymentDetail[Invoice],I22,TablePaymentDetail[Applied to Invoice]) -> 0 | M22: =_xlfn.XLOOKUP(I22,TableInvoiceDetail[Invoice],TableInvoiceDetail[Invoice Total])-SUMIF(TablePaymentDetail[Invoice],I22,TablePaymentDetail[Applied to Invoice]) -> 45
B23: 202305241629 | C23: Larson Consulting | D23: 461 | E23: 2023-05-24 | F23: 2023-06-23 | G23: 495 | I23: 202305241629 | J23: =IF(I23="","",_xlfn.XLOOKUP(I23,TableInvoiceDetail[Invoice],TableInvoiceDetail[Invoiced To])) -> Larson Consulting | K23: =_xlfn.XLOOKUP(I23,TableInvoiceDetail[Invoice],TableInvoiceDetail[Invoice Total]) -> 495 | L23: =SUMIF(TablePaymentDetail[Invoice],I23,TablePaymentDetail[Applied to Invoice]) -> 0 | M23: =_xlfn.XLOOKUP(I23,TableInvoiceDetail[Invoice],TableInvoiceDetail[Invoice Total])-SUMIF(TablePaymentDetail[Invoice],I23,TablePaymentDetail[Applied to Invoice]) -> 495
B24: 202306260903 | C24: Scott Brannon | D24: 20230624103307 | E24: 2023-06-26 | F24: 2023-07-26 | G24: 1000 | I24: 202306260903 | J24: =IF(I24="","",_xlfn.XLOOKUP(I24,TableInvoiceDetail[Invoice],TableInvoiceDetail[Invoiced To])) -> Scott Brannon | K24: =_xlfn.XLOOKUP(I24,TableInvoiceDetail[Invoice],TableInvoiceDetail[Invoice Total]) -> 1000 | L24: =SUMIF(TablePaymentDetail[Invoice],I24,TablePaymentDetail[Applied to Invoice]) -> 0 | M24: =_xlfn.XLOOKUP(I24,TableInvoiceDetail[Invoice],TableInvoiceDetail[Invoice Total])-SUMIF(TablePaymentDetail[Invoice],I24,TablePaymentDetail[Applied to Invoice]) -> 1000
B25: 202307040752 | C25: Lamberts Flooring Inc | D25: 459 | E25: 2023-07-04 | F25: 2023-08-03 | G25: 45 | I25: 202307040752 | J25: =IF(I25="","",_xlfn.XLOOKUP(I25,TableInvoiceDetail[Invoice],TableInvoiceDetail[Invoiced To])) -> Lamberts Flooring Inc | K25: =_xlfn.XLOOKUP(I25,TableInvoiceDetail[Invoice],TableInvoiceDetail[Invoice Total]) -> 45 | L25: =SUMIF(TablePaymentDetail[Invoice],I25,TablePaymentDetail[Applied to Invoice]) -> 0 | M25: =_xlfn.XLOOKUP(I25,TableInvoiceDetail[Invoice],TableInvoiceDetail[Invoice Total])-SUMIF(TablePaymentDetail[Invoice],I25,TablePaymentDetail[Applied to Invoice]) -> 45
B26: 202307040755 | C26: Lamberts Southern Pies Inc | D26: 460 | E26: 2023-07-04 | F26: 2023-08-03 | G26: 45 | I26: 202307040755 | J26: =IF(I26="","",_xlfn.XLOOKUP(I26,TableInvoiceDetail[Invoice],TableInvoiceDetail[Invoiced To])) -> Lamberts Southern Pies Inc | K26: =_xlfn.XLOOKUP(I26,TableInvoiceDetail[Invoice],TableInvoiceDetail[Invoice Total]) -> 45 | L26: =SUMIF(TablePaymentDetail[Invoice],I26,TablePaymentDetail[Applied to Invoice]) -> 0 | M26: =_xlfn.XLOOKUP(I26,TableInvoiceDetail[Invoice],TableInvoiceDetail[Invoice Total])-SUMIF(TablePaymentDetail[Invoice],I26,TablePaymentDetail[Applied to Invoice]) -> 45
B27: 202307211135 | C27: Curtis L Greene | D27: 20230623141751 | E27: 2023-07-21 | F27: 2023-08-20 | G27: 1500 | I27: 202307211135 | J27: =IF(I27="","",_xlfn.XLOOKUP(I27,TableInvoiceDetail[Invoice],TableInvoiceDetail[Invoiced To])) -> Curtis L Greene | K27: =_xlfn.XLOOKUP(I27,TableInvoiceDetail[Invoice],TableInvoiceDetail[Invoice Total]) -> 1500 | L27: =SUMIF(TablePaymentDetail[Invoice],I27,TablePaymentDetail[Applied to Invoice]) -> 0 | M27: =_xlfn.XLOOKUP(I27,TableInvoiceDetail[Invoice],TableInvoiceDetail[Invoice Total])-SUMIF(TablePaymentDetail[Invoice],I27,TablePaymentDetail[Applied to Invoice]) -> 1500
